fUSD/lending_fUSD_20251130
["ID","MTS","AMOUNT","RATE_DAILY","PERIOD"]
[395172619,1764509480679,-552.61305246,0.00016571,2]
[395172620,1764509480701,-200.0,0.00016579,2]
[395172621,1764509480723,-200.0,0.00016579,2]
[395172622,1764509480744,-200.0,0.00016579,2]
[395172623,1764509480766,-17526.55930496,0.0001683,2]
[395172624,1764509480788,-962.0,0.00016846,2]
[395172625,1764509480811,-300.0,0.00016899,2]
[395172626,1764509480832,-339.01525842,0.000169,2]
[395172627,1764509480853,-552.61305246,0.000169,2]
[395172628,1764509480875,-160.11734806,0.00016971,2]
[395172629,1764509480897,-695893.78980479,0.00017,2]
[395172630,1764509497256,-500.0,0.00014628,2]
[395172631,1764509497278,-640.75025313,0.00014628,2]
[395172632,1764509497299,-1258.0,0.00015053,2]
[395172633,1764509497321,-500.0,0.00015973,2]
[395172634,1764509497343,-500.0,0.00015973,2]
[395172635,1764509497364,-500.0,0.00015973,2]
[395172636,1764509497385,-500.0,0.00015973,2]
[395172637,1764509497408,-150.0,0.00016305,2]
[395172638,1764509497431,-500.0,0.00016305,2]
[395172639,1764509497453,-150.0,0.00016442,2]
[395172640,1764509497474,-500.0,0.00016442,2]
[395172641,1764509497495,-319.46344342,0.00016472,2]
[395172642,1764509497516,-1000.0,0.00016521,2]
[395172643,1764509497537,-1000.0,0.00016521,2]
[395172644,1764509497559,-499.1976,0.00016521,2]
[395172645,1764509497581,-200.0,0.00016579,2]
[395172646,1764509497603,-500.0,0.00016579,2]
[395172647,1764509497629,-962.0,0.00016686,2]
[395172648,1764509497651,-962.0,0.0001671,2]
[395172649,1764509497674,-500.0,0.00016716,2]
[395172650,1764509497698,-962.0,0.00016776,2]
[395172651,1764509497720,-500.0,0.00016853,2]
[395172652,1764509497743,-10579.58870345,0.000169,2]
[395172653,1764509522838,1695.0,0.00011998,2]
[395172772,1764509645453,50000.0,0.00025,120]
[395172779,1764509668979,30000.0,0.00022,30]
[395172976,1764509718951,151.0,0.00025,120]
[395172977,1764509721136,151.0,0.00025,120]
[395172978,1764509722992,151.0,0.00025,120]
[395173017,1764509811980,50000.0,0.00025,120]
[395173077,1764509891364,1061.86,0.00025,120]
[395173322,1764510631839,-166.66,0.00013699,2]
[395173323,1764510631849,-159.37172292,0.00013699,2]
[395173324,1764510631861,-627.03415411,0.00013699,2]
[395173325,1764510631872,-60.90412297,0.00013699,2]
[395173326,1764510631881,-200.0,0.00013699,2]
[395173327,1764510631890,-195.0,0.00013715,2]
[395173328,1764510631899,-250.0,0.00013731,2]
[395173329,1764510631908,-3181.91,0.00013739,2]
[395173330,1764510631918,-195.0,0.00013763,2]
[395173331,1764510631927,-166.67,0.00013768,2]
[395173332,1764510631936,-69.89650221,0.00013955,2]
[395173333,1764510631951,-96.76349779,0.00013955,2]
[395173334,1764510631960,-166.66,0.00014212,2]
[395173335,1764510631969,-166.66,0.00014469,2]
[395173336,1764510631982,-1920.91,0.00014519,2]
[395173337,1764510631991,-1920.91,0.00014519,2]
[395173338,1764510632000,-150.0,0.00014528,2]
[395173339,1764510632011,-1636.3286,0.00014529,2]
[395173340,1764510632022,-21069.9179266,0.00014529,2]
[395173341,1764510632033,-1436.97947759,0.00014529,2]
[395173342,1764510632045,-1166.96670514,0.00014529,2]
[395173343,1764510632057,-1570.57116541,0.00014529,2]
[395173344,1764510632067,-2775.90264677,0.00014529,2]
[395173345,1764510632078,-9230.45297849,0.00014529,2]
[395173346,1764510632087,-4380.8858517,0.00014529,2]
[395173349,1764510632439,-4176.78612544,0.00014529,2]
[395173350,1764510632449,-325.00010413,0.00014529,2]
[395173351,1764510632460,-420.26169723,0.00014529,2]
[395173352,1764510632496,-628.42,0.00014529,2]
[395173353,1764510632507,-3267.63143349,0.00014529,2]
[395173354,1764510632520,-994.12251902,0.00014529,2]
[395173357,1764510638044,-664.98932389,0.00014529,2]
[395173358,1764510638103,-745141.9029451,0.00014529,2]
[395173359,1764510638112,-7854.95297845,0.00014587,2]
[395173360,1764510638122,-280.05997361,0.00014587,2]
[395173361,1764510638132,-384.68672263,0.00014587,2]
[395173362,1764510638142,-2153.99790641,0.00014587,2]
[395173363,1764510638151,-1200.0,0.00014617,2]
[395173364,1764510638161,-151.0,0.0001462,2]
[395173365,1764510638171,-151.0,0.0001462,2]
[395173366,1764510638181,-151.0,0.0001462,2]
[395173367,1764510638190,-151.0,0.0001462,2]
[395173368,1764510638201,-151.0,0.0001462,2]
[395173369,1764510638211,-151.0,0.0001462,2]
[395173370,1764510638222,-151.0,0.0001462,2]
[395173371,1764510638232,-151.0,0.0001462,2]
[395173372,1764510638243,-182.00740607,0.0001462,2]
[395173373,1764510638253,-500.0,0.0001462,2]
[395173374,1764510638263,-150.99,0.00014625,2]
[395173375,1764510638272,-9999.99,0.00014626,2]
[395173376,1764510638282,-500.0,0.00014628,2]
[395173377,1764510638292,-521.68557809,0.00014628,2]
[395173378,1764510638302,-331.0821075,0.00014628,2]
[395173379,1764510638312,-3622.678,0.00014629,2]
[395173380,1764510638321,-193.205,0.00014629,2]
[395173381,1764510638331,-600.0,0.00014629,2]
[395173382,1764510638341,-1500.0,0.00014687,2]
[395173383,1764510638351,-166.66,0.00014726,2]
[395173384,1764510638360,-33399.3792,0.00014729,2]
[395173385,1764510638370,-1000.0,0.00014729,2]
[395173386,1764510638379,-7854.95297842,0.00014844,2]
[395173387,1764510638388,-2153.99790641,0.00014844,2]
[395173388,1764510638397,-291.45,0.00014903,2]
[395173389,1764510638407,-384.68672262,0.00014917,2]
[395173390,1764510638416,-166.66,0.00014982,2]
[395173391,1764510638426,-1000.0,0.00014996,2]
[395173392,1764510638436,-1321.0,0.00015053,2]
[395173393,1764510638445,-1603.0,0.00015053,2]
[395173394,1764510638454,-610.0,0.00015053,2]
[395173395,1764510638464,-3442.0,0.00015053,2]
[395173396,1764510638473,-640.0,0.00015053,2]
[395173397,1764510638482,-1258.0,0.00015053,2]
[395173398,1764510638492,-1193.0,0.00015053,2]
[395173399,1764510638501,-562.0,0.00015053,2]
[395173400,1764510638511,-150.0,0.00015053,2]
[395173401,1764510638520,-150.0,0.00015053,2]
[395173402,1764510638529,-252.0,0.00015053,2]
[395173403,1764510638539,-2718.0,0.00015053,2]
[395173404,1764510638548,-195.0,0.00015068,2]
[395173405,1764510638558,-250.0,0.00015068,2]
[395173406,1764510638567,-195.0,0.00015068,2]
[395173407,1764510638576,-195.0,0.00015068,2]
[395173408,1764510638585,-7854.95297842,0.00015101,2]
[395173409,1764510638595,-2153.99790641,0.00015101,2]
[395173410,1764510638604,-500.0,0.00015168,2]
[395173411,1764510638613,-384.68672262,0.00015248,2]
[395173412,1764510638623,-150.0,0.00015288,2]
[395173413,1764510638632,-150.0,0.00015288,2]
[395173414,1764510638641,-150.0,0.00015288,2]
[395173415,1764510638651,-150.0,0.00015288,2]
[395173416,1764510638660,-150.0,0.00015288,2]
[395173417,1764510638670,-150.0,0.00015288,2]
[395173418,1764510638679,-24176.92944931,0.00015307,2]
[395173419,1764510638689,-7854.95297842,0.00015358,2]
[395173420,1764510638698,-2153.99790641,0.00015358,2]
[395173421,1764510638707,-500.0,0.00015365,2]
[395173422,1764510638716,-384.68672262,0.00015578,2]
[395173423,1764510638726,-7854.95297842,0.00015615,2]
[395173424,1764510638735,-2153.99790641,0.00015615,2]
[395173425,1764510638744,-255.0,0.00015647,2]
[395173426,1764510638754,-280.0599736,0.00015744,2]
[395173427,1764510638763,-7854.95297842,0.00015872,2]
[395173428,1764510638772,-2153.99790641,0.00015872,2]
[395173429,1764510638781,-1418.61146733,0.000159,2]
[395173430,1764510638790,-1418.61146731,0.000159,2]
[395173431,1764510638800,-384.68672262,0.00015909,2]
[395173432,1764510638809,-500.0,0.00015973,2]
[395173433,1764510638818,-500.0,0.00015973,2]
[395173434,1764510638827,-500.0,0.00015973,2]
[395173435,1764510638836,-500.0,0.00015973,2]
[395173436,1764510638846,-500.0,0.00015973,2]
[395173437,1764510638855,-161.07388452,0.00015973,2]
[395173438,1764510638864,-506.31065896,0.00015973,2]
[395173439,1764510638873,-500.0,0.00015973,2]
[395173440,1764510638883,-207.48162006,0.00015973,2]
[395173441,1764510638892,-500.0,0.00015973,2]
[395173442,1764510638901,-500.65013658,0.00015973,2]
[395173443,1764510638910,-160.07187961,0.00015973,2]
[395173444,1764510638919,-500.0,0.00015973,2]
[395173445,1764510638929,-500.0,0.00015973,2]
[395173446,1764510638938,-500.0,0.00015973,2]
[395173447,1764510638948,-500.0,0.00015973,2]
[395173448,1764510638957,-316.03350375,0.00015973,2]
[395173449,1764510638966,-500.0,0.00015973,2]
[395173450,1764510638978,-500.0,0.00015973,2]
[395173451,1764510638987,-500.0,0.00015973,2]
[395173452,1764510638996,-500.0,0.00015973,2]
[395173453,1764510639005,-217.03,0.00015973,2]
[395173454,1764510639015,-817.0,0.00016004,2]
[395173455,1764510639024,-7854.95297842,0.00016129,2]
[395173456,1764510639033,-2153.99790641,0.00016129,2]
[395173457,1764510639043,-647.83719656,0.00016136,2]
[395173458,1764510639051,-552.02,0.00016192,2]
[395173459,1764510639060,-177.88,0.00016192,2]
[395173460,1764510639069,-552.02,0.00016192,2]
[395173461,1764510639078,-177.88,0.00016192,2]
[395173462,1764510639088,-552.02,0.00016192,2]
[395173463,1764510639097,-177.88,0.00016192,2]
[395173464,1764510639106,-552.02,0.00016192,2]
[395173465,1764510639115,-552.02,0.00016192,2]
[395173466,1764510639124,-552.02,0.00016192,2]
[395173467,1764510639134,-384.68672262,0.00016239,2]
[395173468,1764510639143,-217.03,0.00016247,2]
[395173469,1764510639152,-271.85454624,0.00016379,2]
[395173470,1764510639161,-7854.95297842,0.00016386,2]
[395173471,1764510639170,-2153.99790641,0.00016386,2]
[395173472,1764510639179,-171.51045652,0.00016421,2]
[395173473,1764510639188,-13520.3,0.00016438,2]
[395173474,1764510639197,-505.74952757,0.00016521,2]
[395173475,1764510639206,-1000.0,0.00016521,2]
[395173476,1764510639216,-1000.0,0.00016521,2]
[395173477,1764510639225,-217.31105922,0.00016521,2]
[395173478,1764510639234,-1000.0,0.00016521,2]
[395173479,1764510639243,-1000.0,0.00016521,2]
[395173480,1764510639252,-1000.0,0.00016521,2]
[395173481,1764510639262,-1000.0,0.00016521,2]
[395173482,1764510639272,-1000.0,0.00016521,2]
[395173483,1764510639282,-1000.0,0.00016521,2]
[395173484,1764510639292,-217.03,0.00016521,2]
[395173485,1764510639301,-384.68672262,0.0001657,2]
[395173486,1764510639310,-7854.95297842,0.00016643,2]
[395173487,1764510639319,-2153.99790641,0.00016643,2]
[395173488,1764510639329,-289.1722194,0.0001665,2]
[395173489,1764510639338,-637.59,0.000167,2]
[395173490,1764510639347,-1400.97258954,0.00016746,2]
[395173491,1764510639356,-200.0,0.00016771,2]
[395173492,1764510639365,-620.0,0.00016782,2]
[395173493,1764510639375,-334.5472959,0.00016782,2]
[395173494,1764510639385,-578.20924308,0.00016782,2]
[395173495,1764510639395,-6000.0,0.00016782,2]
[395173496,1764510639404,-533.88981491,0.00016782,2]
[395173497,1764510639413,-5000.0,0.00016782,2]
[395173498,1764510639423,-1000.0,0.00016782,2]
[395173499,1764510639432,-500.0,0.00016782,2]
[395173500,1764510639441,-1000.0,0.00016782,2]
[395173501,1764510639450,-1000.0,0.00016782,2]
[395173502,1764510639459,-500.0,0.00016782,2]
[395173503,1764510639468,-1000.0,0.00016782,2]
[395173504,1764510639477,-500.0,0.00016782,2]
[395173505,1764510639486,-1000.0,0.00016782,2]
[395173506,1764510639495,-500.0,0.00016782,2]
[395173507,1764510639504,-1000.0,0.00016782,2]
[395173508,1764510639514,-312.63742487,0.00016782,2]
[395173509,1764510639523,-1000.0,0.00016782,2]
[395173510,1764510639532,-250.0,0.00016782,2]
[395173511,1764510639541,-1000.0,0.00016782,2]
[395173512,1764510639551,-250.0,0.00016782,2]
[395173513,1764510639560,-1000.0,0.00016782,2]
[395173514,1764510639569,-250.0,0.00016782,2]
[395173515,1764510639577,-1000.0,0.00016782,2]
[395173516,1764510639586,-250.0,0.00016782,2]
[395173517,1764510639595,-250.0,0.00016782,2]
[395173518,1764510639605,-2514.47609339,0.00016782,2]
[395173519,1764510639615,-250.0,0.00016782,2]
[395173520,1764510639623,-500.0,0.00016782,2]
[395173521,1764510639632,-250.0,0.00016782,2]
[395173522,1764510639641,-500.0,0.00016782,2]
[395173523,1764510639650,-250.0,0.00016782,2]
[395173524,1764510639658,-500.0,0.00016782,2]
[395173525,1764510639667,-250.0,0.00016782,2]
[395173526,1764510639677,-250.0,0.00016782,2]
[395173527,1764510639686,-250.0,0.00016782,2]
[395173528,1764510639696,-257.91778498,0.00016782,2]
[395173529,1764510639704,-300.0,0.00016782,2]
[395173530,1764510639713,-1000.0,0.00016782,2]
[395173531,1764510639722,-1000.0,0.00016782,2]
[395173532,1764510639732,-1000.0,0.00016782,2]
[395173533,1764510639741,-1000.0,0.00016782,2]
[395173534,1764510639750,-1000.0,0.00016782,2]
[395173535,1764510639760,-1000.0,0.00016782,2]
[395173536,1764510639777,-1000.0,0.00016782,2]
[395173537,1764510639786,-1000.0,0.00016782,2]
[395173538,1764510639795,-1000.0,0.00016782,2]
[395173540,1764510640106,-1000.0,0.00016782,2]
[395173541,1764510640116,-1000.0,0.00016782,2]
[395173542,1764510640125,-1000.0,0.00016782,2]
[395173543,1764510640134,-151.0,0.00016782,2]
[395173544,1764510640143,-357.53456067,0.00016782,2]
[395173545,1764510640152,-217.03,0.00016795,2]
[395173546,1764510640161,-156.75181041,0.00016853,2]
[395173547,1764510640170,-150.0,0.00016853,2]
[395173548,1764510640179,-150.0,0.00016853,2]
[395173549,1764510640188,-150.0,0.00016853,2]
[395173550,1764510640197,-150.0,0.00016853,2]
[395173551,1764510640206,-150.0,0.00016853,2]
[395173552,1764510640216,-150.0,0.00016853,2]
[395173553,1764510640225,-150.0,0.00016853,2]
[395173554,1764510640234,-150.0,0.00016853,2]
[395173555,1764510640242,-150.0,0.00016853,2]
[395173556,1764510640251,-160.73087474,0.00016853,2]
[395173557,1764510640260,-150.0,0.00016853,2]
[395173558,1764510640269,-150.0,0.00016853,2]
[395173559,1764510640278,-150.0,0.00016853,2]
[395173560,1764510640287,-433.0,0.00016853,2]
[395173561,1764510640297,-158.73149787,0.00016853,2]
[395173562,1764510640306,-500.0,0.00016853,2]
[395173563,1764510640315,-1000.0,0.00016871,2]
[395173564,1764510640324,-150.64,0.00016877,2]
[395173565,1764510640333,-150.0,0.00016877,2]
[395173566,1764510640342,-150.0,0.00016877,2]
[395173567,1764510640352,-7391.301,0.000169,2]
[395173568,1764510640361,-201.41866534,0.000169,2]
[395173569,1764510640371,-280.0599736,0.000169,2]
[395173570,1764510640381,-7854.95297842,0.000169,2]
[395173571,1764510640390,-226.01017228,0.000169,2]
[395173572,1764510640399,-1246.1397536,0.000169,2]
[395173573,1764510640408,-384.68672262,0.000169,2]
[395173574,1764510640417,-2153.99790641,0.000169,2]
[395173575,1764510640426,-500.0,0.000169,2]
[395173576,1764510640435,-500.0,0.000169,2]
[395173577,1764510640444,-500.0,0.000169,2]
[395173578,1764510640454,-500.0,0.000169,2]
[395173579,1764510640463,-500.0,0.000169,2]
[395173580,1764510640472,-500.0,0.000169,2]
[395173581,1764510640481,-500.0,0.000169,2]
[395173582,1764510640490,-500.0,0.000169,2]
[395173583,1764510640499,-500.0,0.000169,2]
[395173584,1764510640508,-500.0,0.000169,2]
[395173585,1764510640518,-500.0,0.000169,2]
[395173586,1764510640527,-500.0,0.000169,2]
[395173587,1764510640537,-500.0,0.000169,2]
[395173588,1764510640546,-500.0,0.000169,2]
[395173589,1764510640555,-500.0,0.000169,2]
[395173590,1764510640564,-500.0,0.000169,2]
[395173591,1764510640573,-197.92719606,0.000169,2]
[395173592,1764510640583,-164.38079063,0.00016964,2]
[395173594,1764510640592,-160.11734806,0.00016971,2]
[395173595,1764510640601,-500.0,0.00016973,2]
[395173596,1764510640610,-502.42313954,0.00016973,2]
[395173597,1764510640619,-339.26563356,0.00016973,2]
[395173598,1764510640628,-162.090508,0.00016973,2]
[395173599,1764510640637,-507.2295556,0.00016973,2]
[395173600,1764510640646,-500.838144,0.00016973,2]
[395173601,1764510640655,-500.38978168,0.00016973,2]
[395173602,1764510640664,-500.0,0.00016973,2]
[395173603,1764510640673,-500.0,0.00016973,2]
[395173604,1764510640683,-500.0,0.00016973,2]
[395173605,1764510640692,-366.95471126,0.00016973,2]
[395173606,1764510640701,-500.0,0.00016973,2]
[395173607,1764510640709,-500.0,0.00016973,2]
[395173608,1764510640719,-500.0,0.00016973,2]
[395173609,1764510640727,-500.0,0.00016973,2]
[395173610,1764510640737,-500.75968259,0.00016973,2]
[395173611,1764510640745,-500.0,0.00016973,2]
[395173612,1764510640755,-500.0,0.00016973,2]
[395173613,1764510640764,-415.54250471,0.00016973,2]
[395173614,1764510640773,-500.0,0.00016973,2]
[395173615,1764510640782,-500.0,0.00016973,2]
[395173616,1764510640791,-500.0,0.00016973,2]
[395173617,1764510640800,-215.92719524,0.00016973,2]
[395173618,1764510640809,-200.00768026,0.00016973,2]
[395173619,1764510640818,-500.0,0.00016973,2]
[395173620,1764510640827,-500.0,0.00016973,2]
[395173621,1764510640836,-166.09514249,0.00016973,2]
[395173622,1764510640845,-232.40806133,0.00016973,2]
[395173623,1764510640855,-500.0,0.00016973,2]
[395173624,1764510640864,-500.0,0.00016973,2]
[395173625,1764510640873,-500.0,0.00016973,2]
[395173626,1764510640881,-500.0,0.00016973,2]
[395173627,1764510640891,-500.0,0.00016973,2]
[395173628,1764510640900,-500.0,0.00016973,2]
[395173629,1764510640909,-500.0,0.00016973,2]
[395173631,1764510640918,-500.0,0.00016973,2]
[395173632,1764510640927,-500.0,0.00016973,2]
[395173633,1764510640936,-500.0,0.00016973,2]
[395173634,1764510640945,-500.0,0.00016973,2]
[395173635,1764510640954,-4973.7798817,0.00016974,2]
[395173636,1764510640964,-17742.5047695,0.00016974,2]
[395173637,1764510640974,-4839.7868296,0.00016974,2]
[395173638,1764510640987,-3540.6049594,0.00016974,2]
[395173639,1764510640996,-72024.8838051,0.00016974,2]
[395173640,1764510641006,-505.47277289,0.00016983,2]
[395173641,1764510641017,-1347.0,0.00016986,2]
[395173642,1764510641026,-150.0,0.00016986,2]
[395173643,1764510641035,-150.0,0.00016986,2]
[395173644,1764510641044,-150.0,0.00016986,2]
[395173645,1764510641053,-150.0,0.0001699,2]
[395173646,1764510641062,-150.0,0.0001699,2]
[395173647,1764510641071,-150.0,0.0001699,2]
[395173648,1764510641080,-150.0,0.0001699,2]
[395173649,1764510641089,-150.0,0.0001699,2]
[395173650,1764510641097,-150.0,0.0001699,2]
[395173652,1764510641106,-150.0,0.0001699,2]
[395173653,1764510641115,-207.95472836,0.0001699,2]
[395173654,1764510641124,-150.0,0.0001699,2]
[395173656,1764510641133,-500.0,0.0001699,2]
[395173657,1764510641143,-164.38079063,0.0001699,2]
[395173658,1764510641152,-164.38079063,0.0001699,2]
[395173659,1764510641161,-151.0,0.00016997,2]
[395173660,1764510641169,-151.0,0.00016997,2]
[395173661,1764510641178,-300.0,0.00016999,2]
[395173662,1764510641187,-300.0,0.00016999,2]
[395173663,1764510641197,-300.0,0.00016999,2]
[395173664,1764510641206,-1243844.50209652,0.00017,2]
[395173665,1764510641215,-1000.0,0.00017,2]
[395173666,1764510641224,-4153006.11295337,0.00017,2]
[395173667,1764510641242,-45904.00500001,0.00017,2]
[395173668,1764510641252,-5897.02464768,0.00017,2]
[395173669,1764510641342,-150.0,0.00015053,2]
[395173670,1764510641352,-689.15,0.000159,2]
[395173671,1764510641363,-729.46146731,0.000159,2]
[395173672,1764510641372,-1068.51853269,0.00017,2]
[395173673,1764510641386,-490.36000006,0.00017,2]
[395173674,1764510641397,-275.16044994,0.00017,2]
[395173675,1764510641408,-4156.19990002,0.00017,2]
[395173676,1764510641422,-502.25197151,0.00017,2]
[395173677,1764510641433,-3990.95930724,0.00017,2]
[395173678,1764510641443,-2098.95340702,0.00017,2]
[395173679,1764510641453,-682.75,0.00017,2]
[395173680,1764510641464,-2172.71,0.00017,2]
[395173684,1764510643134,-6506.0,0.00015053,2]
[395173685,1764510643143,-8504.39474903,0.00017,2]
[395173686,1764510643206,-4128.19429225,0.00017,2]
[395173687,1764510643216,-349.91848097,0.00017,2]
[395173691,1764510646488,-30.37031099,0.00015053,2]
[395173692,1764510646500,-119.62968901,0.00015053,2]
[395173693,1764510646510,-1418.61146731,0.000159,2]
[395173694,1764510646521,-9138.99217283,0.00017,2]
[395173695,1764510646532,-29038.57296359,0.00017,2]
[395173696,1764510646544,-1327.98447232,0.00017,2]
[395173698,1764510646555,-792.7586,0.00017,2]
[395173699,1764510646566,-16925.16117535,0.00017,2]
[395173700,1764510646576,-4616.74391643,0.00017,2]
[395173701,1764510646587,-1293.51284163,0.00017,2]
[395173760,1764511165792,172.79,0.00011945,2]
[395173830,1764511596640,167.12,0.00019178,30]
[395173914,1764511832751,-201.0,0.00013903,2]
[395173915,1764511832769,-150.0,0.00013903,2]
[395173916,1764511832779,-195.0,0.00014011,2]
[395173917,1764511832789,-250.0,0.00014119,2]
[395173918,1764511832798,-195.0,0.0001422,2]
[395173919,1764511832808,-167.59,0.00014238,2]
[395173920,1764511832824,-280.05997361,0.00014325,2]
[395173921,1764511832834,-115.4961614,0.00014328,2]
[395173922,1764511832845,-950.26546194,0.00014328,2]
[395173923,1764511832857,-134.23837666,0.00014328,2]
[395173924,1764511832866,-300.0,0.00014328,2]
[395173925,1764511832876,-1200.0,0.00014328,2]
[395173926,1764511832885,-2470.41143373,0.00014329,2]
[395173927,1764511832902,-390.37271931,0.00014329,2]
[395173928,1764511832913,-4994.16882541,0.00014329,2]
[395173929,1764511832922,-2906.24195225,0.00014329,2]
[395173930,1764511832931,-25998.97588469,0.00014329,2]
[395173931,1764511832942,-820.7253007,0.00014329,2]
[395173932,1764511832956,-3350.41045513,0.00014329,2]
[395173933,1764511838351,-729829.88835948,0.00014329,2]
[395173934,1764511838361,-150.0,0.00014419,2]
[395173935,1764511838372,-500.0,0.0001442,2]
[395173936,1764511838382,-151.0,0.0001442,2]
[395173937,1764511838395,-151.0,0.0001442,2]
[395173938,1764511838405,-151.0,0.0001442,2]
[395173939,1764511838414,-151.0,0.0001442,2]
[395173940,1764511838424,-151.0,0.0001442,2]
[395173941,1764511838434,-151.0,0.0001442,2]
[395173942,1764511838443,-151.0,0.0001442,2]
[395173943,1764511838453,-151.0,0.0001442,2]
[395173944,1764511838463,-182.00740607,0.0001442,2]
[395173946,1764511838473,-3622.678,0.00014425,2]
[395173948,1764511838482,-193.205,0.00014425,2]
[395173950,1764511838492,-1072.21727013,0.00014426,2]
[395173952,1764511838501,-500.0,0.00014428,2]
[395173954,1764511838510,-500.0,0.00014428,2]
[395173956,1764511838520,-500.0,0.00014428,2]
[395173958,1764511838529,-504.54484366,0.00014428,2]
[395173960,1764511838539,-515.50012945,0.00014428,2]
[395173961,1764511838553,-500.0,0.00014428,2]
[395173962,1764511838563,-521.68557809,0.00014428,2]
[395173963,1764511838573,-500.0,0.00014428,2]
[395173965,1764511838583,-500.0,0.00014428,2]
[395173967,1764511838593,-600.0,0.00014429,2]
[395173969,1764511838602,-1000.0,0.00014429,2]
[395173971,1764511838612,-6838.01,0.00014527,2]
[395173973,1764511838622,-24086.4323,0.00014529,2]
[395173975,1764511838632,-500.0,0.00014628,2]
[395173977,1764511838643,-519.79569884,0.00014628,2]
[395173979,1764511838653,-331.0821075,0.00014628,2]
[395173981,1764511838663,-291.45,0.00014703,2]
[395173983,1764511838673,-2906.24195219,0.00014827,2]
[395173985,1764511838683,-7854.95297842,0.00014838,2]
[395173987,1764511838692,-1852.42,0.00014922,2]
[395173988,1764511838701,-999.0,0.0001495,3]
[395173990,1764511838712,-500.0,0.00014968,2]
[395173992,1764511838722,-1600.0,0.00015046,2]
[395173994,1764511838731,-150.0,0.00015053,2]
[395173996,1764511838740,-1321.0,0.00015053,2]
[395173998,1764511838750,-610.0,0.00015053,2]
[395174000,1764511838760,-3442.0,0.00015053,2]
[395174002,1764511838770,-640.0,0.00015053,2]
[395174003,1764511838780,-1258.0,0.00015053,2]
[395174004,1764511838789,-909.0,0.00015053,2]
[395174005,1764511839280,-1193.0,0.00015053,2]
[395174006,1764511839296,-252.0,0.00015053,2]
[395174007,1764511839307,-2718.0,0.00015053,2]
[395174008,1764511839320,-6506.0,0.00015053,2]
[395174009,1764511839329,-24826.8126156,0.00015138,2]
[395174010,1764511839338,-195.0,0.00015294,2]
[395174011,1764511839347,-250.0,0.00015294,2]
[395174012,1764511839356,-195.0,0.00015294,2]
[395174013,1764511839365,-195.0,0.00015294,2]
[395174014,1764511839374,-2906.24195219,0.00015325,2]
[395174015,1764511839384,-7854.95297842,0.00015347,2]
[395174016,1764511839393,-255.0,0.00015544,2]
[395174017,1764511839402,-280.0599736,0.00015613,2]
[395174018,1764511839411,-167.59,0.00015662,2]
[395174019,1764511839422,-200.0,0.00015687,2]
[395174020,1764511839431,-1680.0,0.00015692,2]
[395174021,1764511839441,-420.0,0.00015692,2]
[395174022,1764511839450,-1680.0,0.00015761,2]
[395174023,1764511839461,-2906.24195219,0.00015823,2]
[395174024,1764511839470,-7854.95297842,0.00015856,2]
[395174025,1764511839482,-945.74097821,0.000159,2]
[395174026,1764511839491,-945.74097821,0.000159,2]
[395174027,1764511839501,-945.74097821,0.000159,2]
[395174028,1764511839510,-945.74097821,0.000159,2]
[395174029,1764511839522,-945.74097821,0.000159,2]
[395174030,1764511839531,-945.74097821,0.000159,2]
[395174031,1764511839540,-500.0,0.00015973,2]
[395174032,1764511839550,-500.0,0.00015973,2]